bitfinex/quotes_SOLUSD_20220211
["timestamp","ask_amount","ask_price","bid_price","bid_amount"]
[1644584304888,4.692,106.6,106.51,0.024]
[1644584305086,4.692,106.6,106.51,30.52301565]
[1644584305287,4.692,106.63,106.52,6.0]
[1644584305485,42.96762111,106.62,106.53,13.55]
[1644584305685,42.96762111,106.62,106.55,43.08754805]
[1644584306088,42.96762111,106.62,106.55,43.33754805]
[1644584306686,57.04642111,106.62,106.55,43.33754805]
[1644584307186,4.692,106.63,106.55,43.33754805]
[1644584307389,4.692,106.63,106.55,57.41404805]
[1644584307586,4.692,106.63,106.56,6.0]
[1644584307987,18.7685,106.63,106.56,6.25]
[1644584308187,61.40568158,106.63,106.57,42.67323519]
[1644584308488,61.40568158,106.63,106.57,42.92323519]
[1644584309492,56.71368158,106.63,106.57,42.92323519]
[1644584309895,56.71368158,106.63,106.57,0.25]
[1644584310095,56.71368158,106.63,106.56,0.25]
[1644584310291,4.69,106.62,106.56,0.25]
[1644584310493,56.71368158,106.63,106.55,14.3265]
[1644584310690,42.63718158,106.63,106.56,6.0]
[1644584310890,14.0751,106.64,106.56,20.0747]
[1644584311092,18.7651,106.64,106.57,2.38366791]
[1644584311491,18.7651,106.64,106.57,2.63366791]
[1644584311694,18.7651,106.64,106.57,0.25]
[1644584311891,45.83625078,106.63,106.57,0.25]
[1644584312494,45.83625078,106.63,106.56,83.82845869]
[1644584312691,59.91245078,106.63,106.56,77.82845869]
[1644584313092,59.91245078,106.63,106.56,24.6525]
[1644584313493,4.69,106.62,106.56,24.6525]
[1644584314102,4.69,106.62,106.56,63.99968445]
[1644584315999,4.96956614,106.61,106.56,24.6525]
[1644584316220,4.96956614,106.61,106.55,14.0766]
[1644584316221,4.96956614,106.61,106.53,3.73540387]
[1644584316420,4.96956614,106.61,106.53,0.024]
[1644584316620,4.691,106.6,106.53,0.024]
[1644584317021,38.162267,106.59,106.53,0.024]
[1644584317221,52.244767,106.59,106.53,0.024]
[1644584317423,4.692,106.58,106.53,0.024]
[1644584317623,12.64354992,106.57,106.52,22.9605]
[1644584318022,12.64354992,106.57,106.52,23.2105]
[1644584318425,4.692,106.6,106.52,23.2105]
[1644584318622,4.692,106.6,106.53,0.024]
[1644584319322,37.26504237,106.59,106.53,0.024]
[1644584319724,51.34644237,106.59,106.53,0.024]
[1644584320530,51.34644237,106.59,106.53,38.00706289]
[1644584320727,4.692,106.58,106.53,38.25706289]
[1644584320926,51.34644237,106.59,106.53,38.25706289]
[1644584322124,14.08,106.6,106.53,38.25706289]
[1644584323229,39.64905107,106.59,106.53,0.274]
[1644584323427,44.34005107,106.59,106.53,0.274]
[1644584323627,58.42175107,106.59,106.53,0.024]
[1644584325429,58.42175107,106.59,106.52,61.53407681]
[1644584325630,53.73075107,106.59,106.52,61.53407681]
[1644584325832,53.73075107,106.59,106.52,62.86181277]
[1644584326029,53.73075107,106.59,106.52,61.53407681]
[1644584326630,53.73075107,106.59,106.52,62.86181277]
[1644584330639,53.73075107,106.59,106.53,1.32773596]
[1644584331039,53.73075107,106.59,106.53,1.57773596]
[1644584333642,53.73075107,106.59,106.53,1.32773596]
[1644584333841,4.692,106.58,106.53,1.32773596]
[1644584334040,14.0861,106.57,106.52,1.35173596]
[1644584334340,14.0861,106.57,106.52,1.32773596]
[1644584334540,4.692,106.56,106.52,1.32773596]
[1644584334741,11.15676585,106.55,106.51,1.32773596]
[1644584335341,11.15676585,106.55,106.5,1.35173596]
[1644584335741,25.24316585,106.55,106.5,1.35173596]
[1644584335943,25.24316585,106.55,106.5,1.60173596]
[1644584337948,14.0864,106.55,106.5,1.60173596]
[1644584338145,18.777,106.56,106.5,1.60173596]
[1644584338347,14.085,106.56,106.5,1.60173596]
[1644584338546,18.8027,106.57,106.5,1.60173596]
[1644584338749,4.692,106.57,106.51,1.35173596]
[1644584338948,88.10805635,106.58,106.51,1.35173596]
[1644584339348,18.7759,106.57,106.51,1.35173596]
[1644584339548,18.7759,106.57,106.5,1.32773596]
[1644584339747,18.7759,106.57,106.51,0.024]
[1644584340548,18.7759,106.57,106.49,1.35173596]
[1644584340749,18.7759,106.57,106.5,0.024]
[1644584340952,18.7759,106.57,106.5,1.35173596]
[1644584341154,18.7759,106.57,106.51,0.024]
[1644584344754,14.0839,106.57,106.51,0.024]
[1644584344961,14.0839,106.57,106.51,1.35173596]
[1644584345154,14.0839,106.57,106.52,35.33398378]
[1644584345354,4.692,106.56,106.52,35.33398378]
[1644584345555,14.0839,106.57,106.52,35.58398378]
[1644584346058,14.0839,106.57,106.52,36.91171974]
[1644584346255,62.8086,106.58,106.52,36.91171974]
[1644584346460,48.7264,106.58,106.53,1.32773596]
[1644584346656,4.692,106.62,106.53,7.32773596]
[1644584346858,4.692,106.63,106.55,1.32773596]
[1644584347060,29.5229,106.64,106.55,9.48673596]
[1644584347362,38.9075,106.64,106.57,15.40233596]
[1644584347558,38.9075,106.64,106.58,36.43377449]
[1644584347760,38.9075,106.64,106.58,50.22377449]
[1644584347959,38.9075,106.64,106.58,50.47377449]
[1644584348361,38.9075,106.64,106.58,50.22377449]
[1644584348562,38.9075,106.64,106.58,50.47377449]
[1644584352180,4.689,106.63,106.58,50.47377449]
[1644584352381,4.689,106.63,106.58,42.68377449]
[1644584352881,38.9075,106.64,106.58,42.68377449]
[1644584354286,4.689,106.63,106.58,42.68377449]
[1644584354482,38.9075,106.64,106.58,42.68377449]
[1644584359991,43.5965,106.64,106.58,42.68377449]
[1644584361393,43.5965,106.64,106.58,36.43377449]
[1644584362994,43.5965,106.64,106.58,36.68377449]
[1644584363194,43.5965,106.64,106.58,36.43377449]
[1644584363395,6.86956684,106.63,106.55,23.7639]
[1644584363597,18.7681,106.62,106.53,3.73540387]
[1644584363796,18.7681,106.62,106.53,28.18960387]
[1644584364000,18.7681,106.62,106.53,25.80593596]
[1644584364397,41.4471,106.62,106.54,43.37795941]
[1644584364595,41.4471,106.62,106.54,43.62795941]
[1644584364998,54.9971,106.62,106.54,43.62795941]
[1644584366199,57.38076791,106.62,106.54,43.62795941]
[1644584366399,54.9971,106.62,106.54,43.62795941]
[1644584369705,57.38076791,106.62,106.53,0.024]
[1644584369907,57.38076791,106.62,106.53,0.274]
[1644584370107,57.38076791,106.62,106.53,0.024]
[1644584371007,68.86376791,106.62,106.53,0.024]
[1644584371217,68.86376791,106.62,106.52,0.024]
[1644584371406,68.86376791,106.62,106.5,1.32773596]
[1644584371407,238.20376791,106.62,106.5,1.32773596]
[1644584371608,238.20376791,106.62,106.51,0.024]
[1644584371808,238.20376791,106.62,106.5,0.024]
[1644584372005,23.9759,106.61,106.5,42.33722386]
[1644584372207,18.242,106.6,106.51,0.024]
[1644584372409,41.59140034,106.57,106.51,0.024]
[1644584372707,4.692,106.56,106.51,0.024]
[1644584372906,4.692,106.56,106.5,42.58722386]
[1644584373808,18.7796,106.56,106.5,42.58722386]
[1644584374009,18.7796,106.56,106.5,0.274]
[1644584374409,18.7796,106.56,106.5,0.024]
[1644584386120,32.3296,106.56,106.5,0.024]
[1644584387523,27.6376,106.56,106.5,0.024]
[1644584387722,18.7755,106.58,106.51,2.38366791]
[1644584387923,4.692,106.59,106.52,0.024]
[1644584388122,24.757,106.61,106.52,0.024]
[1644584388322,29.448,106.61,106.53,2.38366791]
[1644584388524,29.448,106.61,106.53,2.65766791]
[1644584388723,84.02446946,106.6,106.53,0.024]
[1644584388923,18.7721,106.59,106.53,0.274]
[1644584390022,18.7721,106.59,106.53,0.024]
[1644584390725,18.7721,106.59,106.54,2.38366791]
[1644584391147,18.7721,106.59,106.54,2.63366791]
[1644584391330,4.691,106.59,106.54,2.63366791]
[1644584391726,14.08,106.6,106.55,2.38366791]
[1644584391927,14.08,106.6,106.54,0.25]
[1644584392126,14.08,106.6,106.53,3.98540387]
[1644584392527,14.08,106.6,106.54,2.38366791]
[1644584392727,14.08,106.6,106.54,16.46256791]
[1644584392928,14.08,106.6,106.54,16.71256791]
[1644584393528,14.08,106.6,106.54,2.63366791]
[1644584395033,14.08,106.6,106.54,0.25]
[1644584395235,14.08,106.6,106.53,1.60173596]
[1644584395732,14.08,106.6,106.53,3.98540387]
[1644584399259,18.7724,106.59,106.53,3.98540387]
[1644584399658,14.0814,106.59,106.53,1.60173596]
[1644584399859,4.692,106.58,106.53,0.274]
[1644584400059,3.85017543,106.57,106.53,0.024]
[1644584400258,3.85017543,106.57,106.52,68.7777155]
[1644584400463,17.93357543,106.57,106.52,68.7777155]
[1644584400660,14.0834,106.57,106.52,68.7777155]
[1644584400968,4.691,106.59,106.52,68.7777155]
[1644584401162,24.757,106.61,106.53,0.024]
[1644584401360,4.692,106.63,106.53,7.35173596]
[1644584401559,27.8357,106.63,106.54,28.26240387]
[1644584401764,14.0785,106.61,106.55,6.0]
[1644584401959,14.0785,106.61,106.56,41.50455787]
[1644584402363,27.8357,106.63,106.56,41.75455787]
[1644584402564,4.69,106.64,106.56,44.13822578]
[1644584402760,4.69,106.64,106.57,6.0]
[1644584402960,14.0747,106.64,106.57,6.0]
[1644584403162,14.0747,106.64,106.58,2.38366791]
[1644584403361,14.0747,106.64,106.58,13.93666791]
[1644584403561,14.0747,106.64,106.58,14.18666791]
[1644584404361,18.7636,106.65,106.58,14.18666791]
[1644584404561,4.689,106.66,106.58,14.18666791]
[1644584404762,28.6074,106.69,106.59,8.38366791]
[1644584404969,4.689,106.69,106.6,35.53854762]
[1644584405163,4.689,106.69,106.6,37.92221553]
[1644584405363,4.688,106.7,106.61,2.38366791]
[1644584405664,18.7552,106.7,106.61,9.99066791]
[1644584406063,18.7552,106.7,106.62,2.38366791]
[1644584406264,18.7552,106.7,106.62,8.38366791]
[1644584406265,14.0672,106.7,106.62,8.38366791]
[1644584406563,14.0672,106.7,106.62,8.63366791]
[1644584406765,14.0672,106.7,106.62,22.70046791]
[1644584407265,13.12664447,106.69,106.62,8.38366791]
[1644584407467,14.0712,106.68,106.6,35.53854762]
[1644584407667,4.688,106.67,106.56,47.87413596]
[1644584407868,4.688,106.67,106.56,60.6218]
[1644584408070,20.62166791,106.67,106.56,60.6218]
[1644584408266,18.238,106.67,106.56,60.6218]
[1644584408468,4.688,106.67,106.56,75.72438004]
[1644584408670,4.688,106.67,106.57,52.6736078]
[1644584408868,8.43964447,106.69,106.6,14.0699]
[1644584408869,18.7591,106.68,106.6,14.0699]
[1644584409069,14.0701,106.68,106.61,43.86595334]
[1644584409268,16.67764447,106.69,106.61,43.86595334]
[1644584409471,4.688,106.67,106.61,43.86595334]
[1644584409673,4.688,106.68,106.58,23.0722]
[1644584409870,14.0736,106.66,106.58,37.145]
[1644584410068,4.688,106.68,106.58,37.145]
[1644584410270,18.239,106.71,106.59,4.689]
[1644584410470,4.688,106.68,106.59,4.689]
[1644584410668,4.688,106.7,106.59,13.55]
[1644584410867,4.688,106.71,106.59,28.11534774]
[1644584411069,38.35950933,106.71,106.6,44.43692441]
[1644584411269,38.35950933,106.71,106.6,91.73442441]
[1644584411768,14.0675,106.7,106.6,105.80342441]
[1644584411968,16.51030759,106.69,106.6,105.80342441]
[1644584412474,16.51030759,106.69,106.6,91.73442441]
[1644584412969,32.9635755,106.69,106.6,91.73442441]
[1644584413169,46.5135755,106.69,106.6,91.73442441]
[1644584413572,46.5135755,106.69,106.6,44.43692441]
[1644584414775,46.5135755,106.69,106.6,39.74892441]
[1644584416184,46.5135755,106.69,106.57,23.0866]
[1644584416377,79.3144755,106.69,106.57,23.0866]
[1644584416781,295.6544755,106.69,106.54,29.30433596]
[1644584416976,70.1778,106.68,106.54,53.98623596]
[1644584417176,14.0781,106.64,106.55,46.48988708]
[1644584417379,4.69,106.63,106.55,46.48988708]
[1644584418682,11.82230759,106.64,106.55,47.81762304]
[1644584418683,14.0781,106.62,106.55,47.81762304]
[1644584418885,14.0781,106.62,106.55,46.48988708]
[1644584419083,47.74960933,106.62,106.55,46.48988708]
[1644584419587,47.74960933,106.62,106.55,47.81762304]
[1644584419784,14.0781,106.62,106.55,47.81762304]
[1644584419988,14.0781,106.62,106.54,68.06433596]
[1644584420184,4.691,106.61,106.54,53.98623596]
[1644584420385,4.691,106.61,106.54,49.29723596]
[1644584420585,14.0816,106.6,106.54,47.9695]
[1644584420788,14.0816,106.6,106.53,1.35173596]
[1644584420984,18.7726,106.6,106.54,40.91649414]
[1644584421184,14.0816,106.6,106.54,40.91649414]
[1644584421384,9.29338613,106.59,106.53,1.35173596]
[1644584421585,23.37598613,106.59,106.53,1.35173596]
[1644584422487,23.37598613,106.59,106.53,0.024]
[1644584422685,4.692,106.58,106.53,0.024]
[1644584422886,18.775,106.58,106.52,50.46836915]
[1644584423885,33.28710143,106.57,106.52,50.46836915]
[1644584424086,33.28710143,106.57,106.52,0.024]
[1644584424288,47.37170143,106.57,106.52,0.024]
[1644584424486,47.37170143,106.57,106.51,52.94213596]
[1644584424687,4.692,106.56,106.51,46.9224]
[1644584424887,4.692,106.56,106.51,46.9464]
[1644584425287,12.20671549,106.55,106.51,46.9464]
[1644584425488,12.20671549,106.55,106.5,1.35173596]
[1644584426688,14.087,106.56,106.5,0.024]
[1644584427492,14.087,106.56,106.5,1.35173596]
[1644584427695,4.692,106.55,106.5,0.024]
[1644584427892,14.0875,106.55,106.51,0.024]
[1644584428092,4.694,106.54,106.49,0.024]
[1644584428793,38.99734933,106.53,106.49,0.024]
[1644584430397,38.99734933,106.53,106.47,160.50983596]
[1644584431404,38.99734933,106.53,106.47,198.91413534]
[1644584431799,38.99734933,106.53,106.47,160.50983596]
[1644584433121,38.99734933,106.53,106.47,160.00983596]
[1644584433521,38.99734933,106.53,106.47,158.6821]
[1644584434322,38.99734933,106.53,106.47,46.4821]
[1644584434522,53.08724933,106.53,106.47,46.4821]
[1644584434822,61.95624933,106.53,106.46,4.694]
[1644584435021,4.695,106.52,106.46,4.694]
[1644584435221,6.47246759,106.51,106.46,4.694]
[1644584435425,4.695,106.5,106.46,4.694]
[1644584435624,20.56776759,106.51,106.44,53.17943707]
[1644584435625,6.47246759,106.51,106.44,53.17943707]
[1644584436624,20.56526759,106.51,106.44,4.90399706]
[1644584437025,14.0928,106.51,106.44,4.90399706]
[1644584437224,18.245,106.54,106.45,4.695]
[1644584437425,18.245,106.54,106.45,28.9871]
[1644584438026,32.09104585,106.53,106.45,67.51759902]
[1644584438226,18.7863,106.52,106.45,67.51759902]
[1644584438429,13.37877107,106.51,106.45,28.9871]
[1644584439725,18.07377107,106.51,106.45,24.2921]
[1644584440137,14.0913,106.52,106.46,35.20518303]
[1644584440338,14.0913,106.52,106.45,24.2921]
[1644584440542,14.0913,106.52,106.46,4.695]
[1644584441439,34.50776139,106.51,106.46,4.695]
[1644584441739,39.20276139,106.51,106.45,24.2921]
[1644584443039,48.60026139,106.51,106.45,24.2921]
[1644584446541,48.60026139,106.51,106.44,4.90399706]
[1644584446742,4.695,106.5,106.44,4.90399706]
[1644584446942,25.05795553,106.49,106.44,4.90399706]
[1644584447141,14.0959,106.49,106.44,4.90399706]
[1644584447342,60.5342,106.52,106.44,9.59999706]
[1644584447542,60.5342,106.52,106.44,32.55039706]
[1644584447843,24.8064,106.53,106.44,33.87813302]
[1644584448043,14.0936,106.51,106.44,33.87813302]
[1644584448243,4.695,106.54,106.45,55.54198453]
[1644584448446,4.695,106.57,106.46,14.87773596]
[1644584448642,4.695,106.57,106.47,1.32773596]
[1644584448843,4.692,106.58,106.47,17.26140387]
[1644584449042,4.692,106.58,106.48,1.32773596]
[1644584449242,38.73804109,106.57,106.48,51.10235733]
[1644584449742,14.0847,106.57,106.49,14.0842]
[1644584449942,51.6394,106.6,106.49,17.79560387]
[1644584450144,51.6394,106.6,106.49,31.34560387]
[1644584450344,51.6394,106.6,106.5,3.73540387]
[1644584450546,51.6394,106.6,106.5,0.024]
[1644584450746,37.13541654,106.59,106.5,36.22817836]
[1644584450947,4.692,106.58,106.51,0.024]
[1644584451169,4.692,106.58,106.5,0.024]
[1644584451746,18.7753,106.58,106.5,14.1068]
[1644584451948,8.33440038,106.57,106.51,0.024]
[1644584452347,8.33440038,106.57,106.5,0.024]
[1644584453554,22.41900038,106.57,106.5,0.024]
[1644584453753,4.692,106.56,106.5,0.024]
[1644584454055,37.13541654,106.55,106.5,0.024]
[1644584454454,51.22271654,106.55,106.5,0.024]
[1644584457157,4.692,106.56,106.5,0.024]
[1644584457358,14.0858,106.56,106.5,0.024]
[1644584457557,29.2327,106.57,106.5,1.35173596]
[1644584457758,24.5407,106.57,106.51,0.024]
[1644584458160,62.1498294,106.57,106.51,0.024]
[1644584458779,76.2342294,106.57,106.51,0.024]
[1644584459376,14.0844,106.57,106.51,0.024]
[1644584459578,27.6725,106.61,106.51,3.73540387]
[1644584459776,27.6725,106.61,106.52,4.692]
[1644584459976,4.691,106.63,106.52,19.56973596]
[1644584460179,4.691,106.64,106.54,1.32773596]
[1644584460377,37.63835091,106.64,106.55,39.85430993]
[1644584460578,4.69,106.63,106.55,56.31537784]
[1644584460777,7.83146601,106.62,106.55,53.93170993]
[1644584460979,21.90966601,106.62,106.55,53.93170993]
[1644584461178,4.691,106.61,106.55,53.93170993]
[1644584462178,4.691,106.61,106.55,54.18170993]
[1644584462379,21.90966601,106.62,106.55,58.87270993]
[1644584463580,14.0782,106.62,106.55,58.87270993]
[1644584463780,14.0764,106.63,106.55,58.87270993]
[1644584464682,46.37113213,106.63,106.55,58.87270993]
[1644584464981,4.69,106.62,106.55,54.18170993]
[1644584465181,13.17508479,106.61,106.55,54.18170993]
[1644584465381,14.0779,106.62,106.55,54.18170993]
[1644584465585,4.691,106.61,106.55,54.18170993]
[1644584465984,14.0779,106.62,106.55,54.18170993]
[1644584466385,14.0779,106.62,106.55,14.3274]
[1644584466589,14.0779,106.62,106.54,4.69]
[1644584466787,4.691,106.61,106.54,0.25]
[1644584466984,14.0814,106.6,106.53,47.4802]
[1644584467185,4.691,106.59,106.54,6.0]
[1644584467383,38.58430172,106.58,106.53,47.4802]
[1644584467584,38.58430172,106.58,106.52,47.75417503]
[1644584467783,38.58430172,106.58,106.53,6.0]
[1644584468183,38.58430172,106.58,106.51,30.23833596]
[1644584468384,4.692,106.57,106.51,4.715]
[1644584468585,4.692,106.57,106.51,4.691]
[1644584469188,9.26918311,106.56,106.48,0.024]
[1644584469386,4.692,106.55,106.48,0.024]
[1644584469586,14.0887,106.54,106.47,47.5531]
[1644584469787,4.694,106.53,106.47,0.024]
[1644584470486,38.58430172,106.52,106.47,0.024]
[1644584470688,4.694,106.55,106.46,37.48573538]
[1644584470886,14.0896,106.53,106.47,0.024]
[1644584471086,4.694,106.52,106.47,0.024]
[1644584471387,4.694,106.52,106.46,37.50973538]
[1644584473988,6.97519206,106.51,106.46,1.60173596]
[1644584474290,6.97519206,106.51,106.46,0.274]
[1644584474488,6.97519206,106.51,106.46,0.024]
[1644584474689,6.97519206,106.51,106.45,1.32773596]
[1644584474888,4.695,106.5,106.44,6.04573596]
[1644584475088,37.18277344,106.49,106.44,4.718]
[1644584475491,4.696,106.51,106.44,4.718]
[1644584475691,14.0956,106.49,106.44,4.718]
[1644584475890,4.696,106.51,106.44,0.274]
[1644584476290,4.696,106.51,106.44,0.024]
[1644584476490,36.16228257,106.5,106.44,0.024]
[1644584476689,50.25598257,106.5,106.44,0.024]
[1644584477294,61.22498257,106.5,106.44,0.024]
[1644584477895,4.696,106.49,106.44,0.024]
[1644584478093,18.7922,106.49,106.42,1.35173596]
[1644584478295,9.30753435,106.48,106.42,1.35173596]
[1644584478494,4.697,106.47,106.42,1.32773596]
[1644584479496,4.697,106.47,106.42,1.57773596]
[1644584479695,36.16228257,106.46,106.42,1.32773596]
[1644584479995,4.697,106.48,106.41,1.35173596]
[1644584480195,51.6917,106.5,106.41,7.32773596]
[1644584480397,51.6917,106.5,106.41,1.35173596]
[1644584480595,51.6917,106.5,106.42,0.024]
[1644584480995,14.0976,106.47,106.42,0.024]
[1644584481195,14.0976,106.47,106.41,39.42505046]
[1644584481797,4.697,106.49,106.41,39.42505046]
[1644584481998,18.7935,106.49,106.42,0.024]
[1644584482195,44.0952362,106.48,106.41,39.44905046]
[1644584482599,44.0952362,106.48,106.42,6.0]
[1644584482797,44.0952362,106.48,106.42,6.25]
[1644584483297,4.697,106.49,106.43,46.06342654]
[1644584483797,14.0967,106.48,106.43,46.31342654]
[1644584486397,18.7927,106.48,106.43,46.31342654]
[1644584486696,4.696,106.48,106.43,46.31342654]
[1644584486897,18.7914,106.49,106.43,46.31342654]
[1644584487399,59.18669416,106.49,106.43,46.31342654]
[1644584488398,54.49069416,106.49,106.43,46.31342654]
[1644584489500,14.0954,106.49,106.43,46.31342654]
[1644584490404,4.696,106.48,106.43,46.31342654]
[1644584490702,4.696,106.48,106.43,0.25]
[1644584490903,18.7927,106.48,106.42,6.024]
[1644584491203,18.7927,106.48,106.42,6.0]
[1644584491705,18.7927,106.48,106.42,50.74734343]
[1644584491902,14.0967,106.48,106.42,55.44434343]
[1644584492303,11.89249878,106.47,106.42,55.69434343]
[1644584493005,11.89249878,106.47,106.42,12.27473596]
[1644584493205,14.0967,106.48,106.42,12.27473596]
[1644584494304,14.0967,106.48,106.42,58.28724005]
[1644584494703,14.0967,106.48,106.43,1.32773596]
[1644584494903,14.0967,106.48,106.43,1.57773596]
[1644584495806,5.6949745,106.47,106.43,1.57773596]
[1644584496005,14.0967,106.48,106.43,1.57773596]
[1644584496907,14.0967,106.48,106.44,1.32773596]
[1644584497307,14.0967,106.48,106.44,1.57773596]
[1644584497507,14.0951,106.49,106.44,1.57773596]
[1644584498213,11.6472056,106.48,106.44,1.57773596]
[1644584498408,4.696,106.48,106.44,1.57773596]
[1644584498707,14.0951,106.49,106.44,1.57773596]
[1644584498907,14.0951,106.49,106.44,1.32773596]
[1644584499107,4.696,106.48,106.43,1.35173596]
[1644584499307,14.0979,106.47,106.43,1.32773596]
[1644584500007,14.0979,106.47,106.44,1.32773596]
[1644584500408,4.2777864,106.46,106.44,1.32773596]
[1644584501411,4.2777864,106.46,106.44,1.57773596]
[1644584502213,4.2777864,106.46,106.44,1.32773596]
[1644584502413,4.2777864,106.46,106.44,1.57773596]
[1644584503417,12.99940755,106.46,106.44,1.32773596]
[1644584503715,4.697,106.45,106.44,1.32773596]
[1644584503913,12.99940755,106.46,106.43,1.32773596]
[1644584504114,8.72162115,106.46,106.43,1.32773596]
[1644584504314,3.03219997,106.45,106.43,1.32773596]
[1644584504714,17.13179997,106.45,106.43,1.32773596]
[1644584505918,17.13179997,106.45,106.43,1.57773596]
[1644584506317,3.03219997,106.45,106.43,1.57773596]
[1644584507525,1.24558643,106.44,106.43,1.57773596]
[1644584508017,1.24558643,106.44,106.43,1.32773596]
[1644584508219,1.24558643,106.44,106.43,1.57773596]
[1644584508422,5.94258643,106.44,106.43,1.32773596]
[1644584508620,5.94258643,106.44,106.43,1.57773596]
[1644584509123,5.94258643,106.44,106.43,1.32773596]
[1644584509323,5.94258643,106.44,106.43,1.57773596]
[1644584509525,5.94258643,106.44,106.43,1.32773596]
[1644584510726,1.24558643,106.44,106.43,1.32773596]
[1644584511724,1.24558643,106.44,106.42,1.32773596]
[1644584511925,1.24558643,106.44,106.42,1.57773596]
[1644584512425,4.16834509,106.44,106.42,1.32773596]
[1644584512628,18.26924509,106.44,106.42,1.32773596]
[1644584513338,18.26924509,106.44,106.41,1.32773596]
[1644584513829,18.26924509,106.44,106.4,1.32773596]
[1644584513830,18.8004,106.43,106.4,1.32773596]
[1644584514827,50.69966669,106.42,106.4,1.32773596]
[1644584515053,14.1035,106.42,106.4,1.57773596]
[1644584515454,3.03219997,106.41,106.4,1.57773596]
[1644584515653,4.698,106.44,106.4,1.32773596]
[1644584515853,51.7081,106.45,106.4,1.57773596]
[1644584516155,39.16892297,106.44,106.4,1.32773596]
[1644584516353,39.16892297,106.44,106.4,1.57773596]
[1644584516554,51.7081,106.45,106.4,1.32773596]
[1644584516753,4.698,106.45,106.4,1.57773596]
[1644584517154,4.698,106.45,106.41,1.32773596]
[1644584517355,4.698,106.45,106.4,1.32773596]
[1644584517554,4.698,106.45,106.39,1.32773596]
[1644584517956,14.1008,106.44,106.39,1.32773596]
[1644584518157,4.698,106.43,106.39,1.32773596]
[1644584518357,45.70072144,106.44,106.39,1.32773596]
[1644584518557,4.698,106.44,106.39,44.55108304]
[1644584518759,4.698,106.44,106.39,44.80108304]
[1644584519358,14.1048,106.42,106.39,55.94908304]
[1644584519558,4.698,106.46,106.4,3.1143495]
[1644584519760,4.698,106.46,106.41,46.29249834]
[1644584519958,4.698,106.46,106.41,46.54249834]
[1644584520659,4.698,106.46,106.41,54.29449834]
[1644584520860,14.101,106.44,106.41,55.6222343]
[1644584521060,4.698,106.46,106.42,1.78661354]
[1644584521263,23.3355,106.47,106.42,1.78661354]
[1644584521463,23.3355,106.47,106.42,2.03661354]
[1644584521662,27.8226,106.48,106.42,3.3643495]
[1644584521861,14.099,106.46,106.43,35.28049383]
[1644584522261,18.9696,106.48,106.44,1.78661354]
[1644584522463,14.2726,106.48,106.45,46.82651571]
[1644584522863,14.2726,106.48,106.45,47.07651571]
[1644584523064,14.2726,106.48,106.45,46.82651571]
[1644584523466,14.2726,106.48,106.46,1.78661354]
[1644584523665,52.3234,106.5,106.47,42.03645545]
[1644584523868,4.696,106.5,106.47,52.21545545]
[1644584524265,14.0947,106.49,106.47,52.21545545]
[1644584524468,14.0947,106.49,106.47,52.46545545]
[1644584524867,4.696,106.5,106.48,1.78661354]
[1644584525067,4.2777864,106.49,106.48,1.78661354]
[1644584525268,4.696,106.5,106.48,1.78661354]
[1644584525468,18.7898,106.5,106.48,1.78661354]
[1644584526069,18.7898,106.5,106.45,0.024]
[1644584526268,18.7898,106.5,106.44,1.57773596]
[1644584526471,18.7898,106.5,106.44,1.60173596]
[1644584526668,18.7898,106.5,106.44,1.57773596]
[1644584526871,18.7898,106.5,106.45,38.28207607]
[1644584527484,18.7898,106.5,106.45,38.30607607]
[1644584527876,18.7898,106.5,106.45,38.55607607]
[1644584528077,18.7898,106.5,106.45,38.30607607]
[1644584528279,18.7898,106.5,106.45,38.55607607]
[1644584529082,18.7898,106.5,106.45,0.274]
[1644584529280,18.7898,106.5,106.45,0.024]
[1644584529481,32.3398,106.5,106.43,1.32773596]
[1644584529680,32.3398,106.5,106.44,0.024]
[1644584530083,13.34104491,106.49,106.44,0.024]